[Event "Elitserien 2019/2020, round 7-9"]
[Site "Elite stadshotellet, Kungsgatan 6, Vaxjo, Sweden"]
[Date "2020.10.18"]
[Round "3.10"]
[White "Livner, Anders"]
[Black "Sjodahl, Pontus"]
[Result "1-0"]
[TimeControl "90 minutes for 40 moves + 30 minutes for the rest of the game + 30 seconds per move from move one."]
[WhiteTitle "FM"]
[BlackTitle "IM"]
[WhiteFideId "1704150"]
[BlackFideId "1700537"]
[WhiteElo "2371"]
[BlackElo "2430"]

1. c4 {[%clk 01:28:59]} {[%emt 00:02:00]} Nf6 {[%clk 01:30:38]} {[%emt
00:00:22]} 2. Nf3 {[%clk 01:28:59]} {[%emt 00:00:30]} e6 {[%clk 01:30:56]}
{[%emt 00:00:12]} 3. g3 {[%clk 01:29:11]} {[%emt 00:00:18]} d5 {[%clk
01:31:20]} {[%emt 00:00:06]} 4. Bg2 {[%clk 01:29:16]} {[%emt 00:00:25]} Be7
{[%clk 01:31:35]} {[%emt 00:00:14]} 5. O-O {[%clk 01:29:19]} {[%emt 00:00:27]}
O-O {[%clk 01:31:59]} {[%emt 00:00:06]} 6. d4 {[%clk 01:29:14]} {[%emt
00:00:34]} c6 {[%clk 01:29:21]} {[%emt 00:03:09]} 7. Qc2 {[%clk 01:29:21]}
{[%emt 00:00:24]} b6 {[%clk 01:29:29]} {[%emt 00:00:22]} 8. Rd1 {[%clk
01:27:56]} {[%emt 00:01:54]} Bb7 {[%clk 01:28:33]} {[%emt 00:01:26]} 9. b3
{[%clk 01:27:44]} {[%emt 00:00:43]} Ne4 {[%clk 01:03:51]} {[%emt 00:25:11]} 10.
Ne5 {[%clk 01:22:18]} {[%emt 00:05:57]} f5 {[%clk 00:54:54]} {[%emt 00:09:28]}
11. Nd3 {[%clk 01:13:56]} {[%emt 00:08:52]} Na6 {[%clk 00:50:10]} {[%emt
00:05:12]} 12. Bb2 {[%clk 01:08:53]} {[%emt 00:05:34]} Rc8 {[%clk 00:47:39]}
{[%emt 00:03:01]} 13. Nd2 {[%clk 01:06:49]} {[%emt 00:02:34]} Nb4 {[%clk
00:46:24]} {[%emt 00:01:45]} 14. Nxb4 {[%clk 01:01:46]} {[%emt 00:05:33]} Bxb4
{[%clk 00:46:36]} {[%emt 00:00:18]} 15. Nxe4 {[%clk 00:56:53]} {[%emt
00:05:23]} fxe4 {[%clk 00:34:58]} {[%emt 00:12:07]} 16. f3 {[%clk 00:54:51]}
{[%emt 00:02:32]} exf3 {[%clk 00:35:16]} {[%emt 00:00:12]} 17. exf3 {[%clk
00:54:24]} {[%emt 00:00:57]} Qf6 {[%clk 00:28:36]} {[%emt 00:07:09]} 18. f4
{[%clk 00:48:51]} {[%emt 00:06:04]} Qf5 {[%clk 00:27:49]} {[%emt 00:01:16]} 19.
Qe2 {[%clk 00:46:24]} {[%emt 00:02:57]} Bd6 {[%clk 00:20:36]} {[%emt 00:07:43]}
20. Rd3 {[%clk 00:43:54]} {[%emt 00:03:00]} c5 {[%clk 00:17:54]} {[%emt
00:03:13]} 21. Re3 {[%clk 00:42:00]} {[%emt 00:02:24]} Rfe8 {[%clk 00:13:50]}
{[%emt 00:04:34]} 22. Re1 {[%clk 00:38:48]} {[%emt 00:03:41]} cxd4 {[%clk
00:05:03]} {[%emt 00:09:18]} 23. Bxd4 {[%clk 00:36:55]} {[%emt 00:02:23]} Rcd8
{[%clk 00:03:57]} {[%emt 00:01:36]} 24. Bf3 {[%clk 00:29:57]} {[%emt 00:07:29]}
Bb4 {[%clk 00:02:06]} {[%emt 00:02:21]} 25. Rd1 {[%clk 00:19:15]} {[%emt
00:11:12]} Qf8 {[%clk 00:01:33]} {[%emt 00:01:02]} 26. Rxe6 {[%clk 00:16:42]}
{[%emt 00:03:04]} dxc4 {[%clk 00:00:39]} {[%emt 00:01:24]} 27. Bxb7 {[%clk
00:15:25]} {[%emt 00:01:47]} Rxe6 {[%clk 00:00:33]} {[%emt 00:00:35]} 28. Qxe6+
{[%clk 00:15:42]} {[%emt 00:00:13]} Qf7 {[%clk 00:00:56]} {[%emt 00:00:07]} 29.
Qxf7+ {[%clk 00:10:00]} {[%emt 00:06:12]} Kxf7 {[%clk 00:01:21]} {[%emt
00:00:05]} 30. Kf2 {[%clk 00:10:18]} {[%emt 00:00:12]} Bc5 {[%clk 00:01:44]}
{[%emt 00:00:06]} 31. Ke3 {[%clk 00:10:16]} {[%emt 00:00:33]} c3 {[%clk
00:02:00]} {[%emt 00:00:13]} 32. Be4 {[%clk 00:10:11]} {[%emt 00:00:35]} g5
{[%clk 00:01:45]} {[%emt 00:00:46]} 33. Bc2 {[%clk 00:09:04]} {[%emt 00:01:36]}
1-0

[Event "Elitserien 2019/2020, round 7-9"]
[Site "Elite stadshotellet, Kungsgatan 6, Vaxjo, Sweden"]
[Date "2020.10.18"]
[Round "3.11"]
[White "Miezis, Normunds"]
[Black "Ong, Kezli"]
[Result "1-0"]
[TimeControl "90 minutes for 40 moves + 30 minutes for the rest of the game + 30 seconds per move from move one."]
[WhiteTitle "GM"]
[WhiteFideId "11600136"]
[BlackFideId "1706500"]
[WhiteElo "2484"]
[BlackElo "2281"]

1. c4 {[%clk 01:30:55]} {[%emt 00:00:03]} e5 {[%clk 01:28:52]} {[%emt
00:02:09]} 2. Nc3 {[%clk 01:31:04]} {[%emt 00:00:21]} Nf6 {[%clk 01:28:54]}
{[%emt 00:00:28]} 3. g3 {[%clk 01:30:57]} {[%emt 00:00:37]} d5 {[%clk
01:28:46]} {[%emt 00:00:39]} 4. cxd5 {[%clk 01:31:16]} {[%emt 00:00:11]} Nxd5
{[%clk 01:29:09]} {[%emt 00:00:07]} 5. Bg2 {[%clk 01:31:35]} {[%emt 00:00:10]}
Nb6 {[%clk 01:29:18]} {[%emt 00:00:20]} 6. Nf3 {[%clk 01:31:35]} {[%emt
00:00:30]} Nc6 {[%clk 01:29:31]} {[%emt 00:00:18]} 7. O-O {[%clk 01:29:40]}
{[%emt 00:02:25]} Be7 {[%clk 01:29:36]} {[%emt 00:00:25]} 8. d3 {[%clk
01:28:54]} {[%emt 00:01:16]} O-O {[%clk 01:29:41]} {[%emt 00:00:25]} 9. a3
{[%clk 01:28:28]} {[%emt 00:00:57]} Be6 {[%clk 01:29:03]} {[%emt 00:01:08]} 10.
Be3 {[%clk 01:25:46]} {[%emt 00:03:12]} f6 {[%clk 01:22:00]} {[%emt 00:07:33]}
11. Rc1 {[%clk 01:23:58]} {[%emt 00:02:18]} Qd7 {[%clk 01:19:50]} {[%emt
00:02:40]} 12. Ne4 {[%clk 01:22:39]} {[%emt 00:01:48]} Nd4 {[%clk 00:59:57]}
{[%emt 00:20:24]} 13. Bxd4 {[%clk 01:10:27]} {[%emt 00:12:42]} exd4 {[%clk
01:00:19]} {[%emt 00:00:09]} 14. b4 {[%clk 01:08:48]} {[%emt 00:02:08]} c6
{[%clk 00:37:16]} {[%emt 00:23:33]} 15. Qc2 {[%clk 01:00:14]} {[%emt 00:09:04]}
Rfd8 {[%clk 00:33:55]} {[%emt 00:03:52]} 16. Rb1 {[%clk 00:58:00]} {[%emt
00:02:44]} Bf7 {[%clk 00:25:06]} {[%emt 00:09:18]} 17. Nc5 {[%clk 00:55:40]}
{[%emt 00:02:50]} Qc7 {[%clk 00:11:58]} {[%emt 00:13:39]} 18. Nb3 {[%clk
00:51:30]} {[%emt 00:04:39]} Bxb3 {[%clk 00:10:46]} {[%emt 00:01:43]} 19. Qxb3+
{[%clk 00:51:02]} {[%emt 00:00:58]} Kh8 {[%clk 00:10:04]} {[%emt 00:01:12]} 20.
Rfc1 {[%clk 00:47:09]} {[%emt 00:04:23]} Qd7 {[%clk 00:01:15]} {[%emt
00:09:19]} 21. a4 {[%clk 00:44:28]} {[%emt 00:03:10]} Nd5 {[%clk 00:00:41]}
{[%emt 00:01:05]} 22. Nxd4 {[%clk 00:43:31]} {[%emt 00:01:28]} Nxb4 {[%clk
00:00:36]} {[%emt 00:00:36]} 23. Ne6 {[%clk 00:43:35]} {[%emt 00:00:25]} Re8
{[%clk 00:00:32]} {[%emt 00:00:34]} 24. Bh3 {[%clk 00:39:33]} {[%emt 00:04:31]}
Qd6 {[%clk 00:00:49]} {[%emt 00:00:14]} 25. Rc4 {[%clk 00:34:25]} {[%emt
00:05:37]} a5 {[%clk 00:00:33]} {[%emt 00:00:46]} 26. Rd4 {[%clk 00:34:05]}
{[%emt 00:00:49]} Qe5 {[%clk 00:00:40]} {[%emt 00:00:23]} 27. Re4 {[%clk
00:32:47]} {[%emt 00:01:47]} Qh5 {[%clk 00:00:31]} {[%emt 00:00:40]} 28. Rh4
{[%clk 00:17:57]} {[%emt 00:15:19]} Qd5 {[%clk 00:00:36]} {[%emt 00:00:26]} 29.
Qxd5 {[%clk 00:14:54]} {[%emt 00:03:32]} Nxd5 {[%clk 00:00:33]} {[%emt
00:00:34]} 30. Bf5 {[%clk 00:14:43]} {[%emt 00:00:40]} h6 {[%clk 00:00:34]}
{[%emt 00:00:30]} 31. Rxb7 {[%clk 00:13:09]} {[%emt 00:02:05]} Rab8 {[%clk
00:00:42]} {[%emt 00:00:23]} 32. Ra7 {[%clk 00:13:02]} {[%emt 00:00:36]} Ra8
{[%clk 00:00:32]} {[%emt 00:00:40]} 33. Rd7 {[%clk 00:12:47]} {[%emt 00:00:45]}
Nb6 {[%clk 00:00:33]} {[%emt 00:00:30]} 34. Rc7 {[%clk 00:10:36]} {[%emt
00:02:40]} Rac8 {[%clk 00:00:42]} {[%emt 00:00:21]} 35. Re4 {[%clk 00:08:16]}
{[%emt 00:02:50]} Nd5 {[%clk 00:00:31]} {[%emt 00:00:42]} 36. Rxc8 {[%clk
00:08:10]} {[%emt 00:00:35]} Rxc8 {[%clk 00:00:59]} {[%emt 00:00:02]} 37. Nxg7
{[%clk 00:04:11]} {[%emt 00:04:29]} Rb8 {[%clk 00:01:07]} {[%emt 00:00:22]} 38.
Nh5 {[%clk 00:04:01]} {[%emt 00:00:39]} Bf8 {[%clk 00:00:32]} {[%emt 00:01:06]}
39. Re6 {[%clk 00:04:12]} {[%emt 00:00:18]} Nc3 {[%clk 00:00:32]} {[%emt
00:00:30]} 40. Kg2 {[%clk 00:04:23]} {[%emt 00:00:19]} Nxa4 {[%clk 00:00:36]}
{[%emt 00:00:27]} 41. Rxf6 {[%clk 00:04:18]} {[%emt 00:00:34]} Bg7 {[%clk
00:16:34]} {[%emt 00:14:31]} 42. Rg6 {[%clk 00:30:49]} {[%emt 00:03:59]} Bb2
{[%clk 00:10:52]} {[%emt 00:06:11]} 43. e3 {[%clk 00:23:55]} {[%emt 00:07:24]}
c5 {[%clk 00:06:15]} {[%emt 00:05:07]} 44. d4 {[%clk 00:21:05]} {[%emt
00:03:20]} cxd4 {[%clk 00:05:30]} {[%emt 00:01:15]} 45. Rxh6+ {[%clk 00:21:02]}
{[%emt 00:00:32]} Kg8 {[%clk 00:05:56]} {[%emt 00:00:04]} 46. Be6+ {[%clk
00:20:48]} {[%emt 00:00:44]} Kf8 {[%clk 00:06:23]} {[%emt 00:00:04]} 47. Rh8+
{[%clk 00:21:03]} {[%emt 00:00:14]} Ke7 {[%clk 00:06:50]} {[%emt 00:00:03]} 48.
Rxb8 {[%clk 00:21:21]} {[%emt 00:00:13]} Kxe6 {[%clk 00:06:53]} {[%emt
00:00:27]} 49. Nf4+ {[%clk 00:21:33]} {[%emt 00:00:17]} Kd7 {[%clk 00:05:14]}
{[%emt 00:02:10]} 50. Nd3 {[%clk 00:21:02]} {[%emt 00:01:00]} Bc3 {[%clk
00:05:04]} {[%emt 00:00:40]} 51. exd4 {[%clk 00:21:02]} {[%emt 00:00:30]} Bxd4
{[%clk 00:05:16]} {[%emt 00:00:19]} 52. Rb5 {[%clk 00:20:42]} {[%emt 00:00:49]}
Bb6 {[%clk 00:04:20]} {[%emt 00:01:26]} 53. Ne5+ {[%clk 00:20:59]} {[%emt
00:00:13]} Kc7 {[%clk 00:03:48]} {[%emt 00:01:03]} 54. Nc4 {[%clk 00:21:06]}
{[%emt 00:00:22]} Kc6 {[%clk 00:03:54]} {[%emt 00:00:24]} 55. Rh5 {[%clk
00:21:27]} {[%emt 00:00:09]} 1-0

[Event "Elitserien 2019/2020, round 7-9"]
[Site "Elite stadshotellet, Kungsgatan 6, Vaxjo, Sweden"]
[Date "2020.10.18"]
[Round "3.12"]
[White "Lindeman, Sven"]
[Black "Akesson, Ralf"]
[Result "0-1"]
[TimeControl "90 minutes for 40 moves + 30 minutes for the rest of the game + 30 seconds per move from move one."]
[BlackTitle "GM"]
[WhiteFideId "1700790"]
[BlackFideId "1700120"]
[WhiteElo "2157"]
[BlackElo "2379"]

1. e4 {[%clk 01:30:55]} {[%emt 00:00:04]} c5 {[%clk 01:30:19]} {[%emt
00:00:41]} 2. Nf3 {[%clk 01:31:08]} {[%emt 00:00:17]} e6 {[%clk 01:30:27]}
{[%emt 00:00:22]} 3. d3 {[%clk 01:31:30]} {[%emt 00:00:08]} Nc6 {[%clk
01:30:15]} {[%emt 00:00:42]} 4. g3 {[%clk 01:31:41]} {[%emt 00:00:19]} d5
{[%clk 01:30:05]} {[%emt 00:00:39]} 5. Nbd2 {[%clk 01:31:55]} {[%emt 00:00:16]}
Nf6 {[%clk 01:24:59]} {[%emt 00:05:36]} 6. Bg2 {[%clk 01:31:58]} {[%emt
00:00:28]} Be7 {[%clk 01:25:23]} {[%emt 00:00:06]} 7. O-O {[%clk 01:32:04]}
{[%emt 00:00:23]} b6 {[%clk 01:25:40]} {[%emt 00:00:13]} 8. Re1 {[%clk
01:30:16]} {[%emt 00:02:18]} Bb7 {[%clk 01:25:06]} {[%emt 00:01:05]} 9. a3
{[%clk 01:27:16]} {[%emt 00:03:29]} Qc7 {[%clk 01:23:46]} {[%emt 00:01:20]} 10.
Qe2 {[%clk 01:23:06]} {[%emt 00:04:40]} h6 {[%clk 01:05:39]} {[%emt 00:19:08]}
11. c3 {[%clk 01:18:38]} {[%emt 00:04:57]} a5 {[%clk 01:02:34]} {[%emt
00:03:35]} 12. exd5 {[%clk 01:01:46]} {[%emt 00:17:22]} exd5 {[%clk 01:00:03]}
{[%emt 00:03:01]} 13. Nf1 {[%clk 01:01:27]} {[%emt 00:00:49]} O-O {[%clk
00:59:12]} {[%emt 00:01:21]} 14. Nh4 {[%clk 00:58:47]} {[%emt 00:03:11]} Rfe8
{[%clk 00:56:35]} {[%emt 00:03:07]} 15. Qc2 {[%clk 00:49:35]} {[%emt 00:09:40]}
Qd7 {[%clk 00:48:19]} {[%emt 00:08:47]} 16. Ne3 {[%clk 00:48:56]} {[%emt
00:01:09]} Bf8 {[%clk 00:47:44]} {[%emt 00:01:05]} 17. Bd2 {[%clk 00:47:56]}
{[%emt 00:01:29]} g6 {[%clk 00:44:32]} {[%emt 00:03:42]} 18. Qb3 {[%clk
00:46:04]} {[%emt 00:02:22]} Ne5 {[%clk 00:39:53]} {[%emt 00:05:10]} 19. d4
{[%clk 00:37:27]} {[%emt 00:09:07]} Nd3 {[%clk 00:37:37]} {[%emt 00:02:46]} 20.
Red1 {[%clk 00:35:50]} {[%emt 00:02:07]} c4 {[%clk 00:29:38]} {[%emt 00:08:28]}
21. Qc2 {[%clk 00:35:40]} {[%emt 00:00:39]} Ne4 {[%clk 00:28:13]} {[%emt
00:01:56]} 22. Be1 {[%clk 00:35:24]} {[%emt 00:00:46]} Qe6 {[%clk 00:11:58]}
{[%emt 00:16:44]} 23. Qe2 {[%clk 00:21:45]} {[%emt 00:14:09]} h5 {[%clk
00:09:55]} {[%emt 00:02:33]} 24. Nf1 {[%clk 00:15:21]} {[%emt 00:06:53]} Qf6
{[%clk 00:06:29]} {[%emt 00:03:57]} 25. Qc2 {[%clk 00:15:05]} {[%emt 00:00:46]}
Nf4 {[%clk 00:05:38]} {[%emt 00:01:21]} 26. f3 {[%clk 00:13:49]} {[%emt
00:01:46]} Nxg2 {[%clk 00:05:45]} {[%emt 00:00:23]} 27. Qxg2 {[%clk 00:12:16]}
{[%emt 00:02:03]} Nd6 {[%clk 00:05:13]} {[%emt 00:01:02]} 28. g4 {[%clk
00:11:08]} {[%emt 00:01:39]} Rxe1 {[%clk 00:03:30]} {[%emt 00:02:13]} 29. g5
{[%clk 00:08:21]} {[%emt 00:03:17]} Qf4 {[%clk 00:01:49]} {[%emt 00:02:11]} 30.
Rxe1 {[%clk 00:08:34]} {[%emt 00:00:17]} Qxh4 {[%clk 00:02:17]} {[%emt
00:00:02]} 31. Re5 {[%clk 00:07:55]} {[%emt 00:01:08]} Nf5 {[%clk 00:01:59]}
{[%emt 00:00:49]} 32. Ng3 {[%clk 00:06:49]} {[%emt 00:01:36]} Ng7 {[%clk
00:01:25]} {[%emt 00:01:04]} 33. f4 {[%clk 00:02:38]} {[%emt 00:04:40]} Bd6
{[%clk 00:01:45]} {[%emt 00:00:10]} 34. Rf1 {[%clk 00:02:17]} {[%emt 00:00:52]}
Bxe5 {[%clk 00:01:56]} {[%emt 00:00:19]} 35. dxe5 {[%clk 00:02:41]} {[%emt
00:00:06]} Qg4 {[%clk 00:01:52]} {[%emt 00:00:34]} 36. Qf2 {[%clk 00:01:30]}
{[%emt 00:01:41]} h4 {[%clk 00:01:24]} {[%emt 00:00:58]} 37. Qxb6 {[%clk
00:01:52]} {[%emt 00:00:08]} Bc8 {[%clk 00:01:03]} {[%emt 00:00:52]} 38. Qd8+
{[%clk 00:01:46]} {[%emt 00:00:36]} Kh7 {[%clk 00:01:31]} {[%emt 00:00:02]} 39.
Qxd5 {[%clk 00:02:06]} {[%emt 00:00:10]} Rb8 {[%clk 00:01:21]} {[%emt
00:00:40]} 40. Qd6 {[%clk 00:02:21]} {[%emt 00:00:15]} Rxb2 {[%clk 00:01:11]}
{[%emt 00:00:39]} 0-1

[Event "Elitserien 2019/2020, round 7-9"]
[Site "Elite stadshotellet, Kungsgatan 6, Vaxjo, Sweden"]
[Date "2020.10.18"]
[Round "3.13"]
[White "Norberg, Johan"]
[Black "Hjelm, Niclas"]
[Result "1/2-1/2"]
[TimeControl "90 minutes for 40 moves + 30 minutes for the rest of the game + 30 seconds per move from move one."]
[WhiteTitle "CM"]
[BlackTitle "FM"]
[WhiteFideId "1707965"]
[BlackFideId "1700502"]
[WhiteElo "2304"]
[BlackElo "2306"]

1. g3 {[%clk 01:30:07]} {[%emt 00:00:53]} d5 {[%clk 01:30:40]} {[%emt
00:00:20]} 2. Bg2 {[%clk 01:30:31]} {[%emt 00:00:07]} g6 {[%clk 01:30:34]}
{[%emt 00:00:35]} 3. c4 {[%clk 01:28:16]} {[%emt 00:02:45]} c6 {[%clk
01:20:11]} {[%emt 00:10:53]} 4. cxd5 {[%clk 01:20:48]} {[%emt 00:07:58]} cxd5
{[%clk 01:20:29]} {[%emt 00:00:12]} 5. Qb3 {[%clk 01:19:50]} {[%emt 00:01:28]}
Nf6 {[%clk 01:17:54]} {[%emt 00:03:05]} 6. Nc3 {[%clk 01:18:24]} {[%emt
00:01:56]} e6 {[%clk 01:12:37]} {[%emt 00:05:46]} 7. d4 {[%clk 01:16:38]}
{[%emt 00:02:16]} Nc6 {[%clk 01:11:32]} {[%emt 00:01:35]} 8. Nf3 {[%clk
01:14:12]} {[%emt 00:02:56]} Bg7 {[%clk 01:11:47]} {[%emt 00:00:15]} 9. O-O
{[%clk 01:12:50]} {[%emt 00:01:52]} O-O {[%clk 01:12:06]} {[%emt 00:00:11]} 10.
Rd1 {[%clk 01:06:19]} {[%emt 00:07:01]} b6 {[%clk 00:55:00]} {[%emt 00:17:36]}
11. Bf4 {[%clk 01:01:40]} {[%emt 00:05:08]} Bb7 {[%clk 00:52:57]} {[%emt
00:02:34]} 12. Rac1 {[%clk 00:54:58]} {[%emt 00:07:13]} Qe7 {[%clk 00:43:12]}
{[%emt 00:10:15]} 13. Ne5 {[%clk 00:50:01]} {[%emt 00:05:28]} Rfc8 {[%clk
00:38:08]} {[%emt 00:05:33]} 14. Nb5 {[%clk 00:41:17]} {[%emt 00:09:15]} Ne8
{[%clk 00:37:19]} {[%emt 00:01:18]} 15. a4 {[%clk 00:35:23]} {[%emt 00:06:25]}
g5 {[%clk 00:30:44]} {[%emt 00:07:04]} 16. Nxc6 {[%clk 00:33:54]} {[%emt
00:01:59]} Bxc6 {[%clk 00:30:56]} {[%emt 00:00:18]} 17. Be3 {[%clk 00:31:00]}
{[%emt 00:03:24]} Bf6 {[%clk 00:28:12]} {[%emt 00:03:13]} 18. Ra1 {[%clk
00:28:05]} {[%emt 00:03:26]} a6 {[%clk 00:23:53]} {[%emt 00:04:50]} 19. Nc3
{[%clk 00:26:59]} {[%emt 00:01:36]} Nd6 {[%clk 00:23:20]} {[%emt 00:01:03]} 20.
f3 {[%clk 00:22:02]} {[%emt 00:05:27]} Rab8 {[%clk 00:21:22]} {[%emt 00:02:27]}
21. Qa3 {[%clk 00:11:33]} {[%emt 00:11:00]} b5 {[%clk 00:16:30]} {[%emt
00:05:22]} 22. axb5 {[%clk 00:11:21]} {[%emt 00:00:42]} axb5 {[%clk 00:16:04]}
{[%emt 00:00:55]} 23. Qb4 {[%clk 00:09:29]} {[%emt 00:02:22]} Nc4 {[%clk
00:16:00]} {[%emt 00:00:34]} 24. Qxe7 {[%clk 00:09:55]} {[%emt 00:00:04]} Bxe7
{[%clk 00:16:22]} {[%emt 00:00:08]} 25. Bc1 {[%clk 00:10:00]} {[%emt 00:00:25]}
Ra8 {[%clk 00:11:06]} {[%emt 00:05:46]} 26. Rxa8 {[%clk 00:09:03]} {[%emt
00:01:28]} Rxa8 {[%clk 00:11:17]} {[%emt 00:00:19]} 27. e4 {[%clk 00:07:05]}
{[%emt 00:02:28]} b4 {[%clk 00:11:23]} {[%emt 00:00:23]} 28. Ne2 {[%clk
00:07:24]} {[%emt 00:00:10]} Ra1 {[%clk 00:09:29]} {[%emt 00:02:24]} 29. exd5
{[%clk 00:05:20]} {[%emt 00:02:35]} exd5 {[%clk 00:07:11]} {[%emt 00:02:48]} 30.
Rf1 {[%clk 00:03:44]} {[%emt 00:02:06]} Ra2 {[%clk 00:05:13]} {[%emt 00:02:29]}
31. f4 {[%clk 00:02:55]} {[%emt 00:01:18]} Nxb2 {[%clk 00:03:26]} {[%emt
00:02:16]} 32. fxg5 {[%clk 00:02:40]} {[%emt 00:00:45]} Nd3 {[%clk 00:03:42]}
{[%emt 00:00:13]} 33. Nf4 {[%clk 00:02:44]} {[%emt 00:00:27]} Nxf4 {[%clk
00:03:00]} {[%emt 00:01:12]} 34. Bxf4 {[%clk 00:01:51]} {[%emt 00:01:23]} b3
{[%clk 00:02:33]} {[%emt 00:00:57]} 35. Rb1 {[%clk 00:01:39]} {[%emt 00:00:41]}
b2 {[%clk 00:02:24]} {[%emt 00:00:40]} 36. Kf2 {[%clk 00:01:35]} {[%emt
00:00:34]} Ba3 {[%clk 00:01:00]} {[%emt 00:01:54]} 37. Bh3 {[%clk 00:01:32]}
{[%emt 00:00:32]} Ra1 {[%clk 00:00:58]} {[%emt 00:00:33]} 38. Bf5 {[%clk
00:02:00]} {[%emt 00:00:02]} Bb5 {[%clk 00:00:54]} {[%emt 00:00:35]} 39. Bd2
{[%clk 00:02:08]} {[%emt 00:00:21]} Bc4 {[%clk 00:00:36]} {[%emt 00:00:48]} 40.
Bc3 {[%clk 00:02:36]} {[%emt 00:00:02]} Rxb1 {[%clk 00:00:33]} {[%emt
00:00:34]} 41. Bxb1 {[%clk 00:02:59]} {[%emt 00:00:06]} Kg7 {[%clk 00:30:06]}
{[%emt 00:00:57]} 42. Kf3 {[%clk 00:31:03]} {[%emt 00:02:26]} h6 {[%clk
00:29:41]} {[%emt 00:00:55]} 43. gxh6+ {[%clk 00:27:51]} {[%emt 00:03:42]} Kxh6
{[%clk 00:30:01]} {[%emt 00:00:10]} 44. g4 {[%clk 00:23:57]} {[%emt 00:04:24]}
Kg5 {[%clk 00:27:22]} {[%emt 00:03:09]} 45. Be1 {[%clk 00:24:15]} {[%emt
00:00:11]} Kf6 {[%clk 00:21:09]} {[%emt 00:06:44]} 46. h4 {[%clk 00:23:54]}
{[%emt 00:00:50]} Kg7 {[%clk 00:21:10]} {[%emt 00:00:29]} 47. h5 {[%clk
00:21:40]} {[%emt 00:02:45]} Bb3 {[%clk 00:19:17]} {[%emt 00:02:22]} 48. Ke2
{[%clk 00:18:47]} {[%emt 00:03:23]} 1/2-1/2